fUST/lending_fUST_20250615
["ID","MTS","AMOUNT","RATE_DAILY","PERIOD"]
[365893849,1749976260974,-373.88189381,0.00021917,4]
[365893850,1749976262143,-460.0,0.00021917,4]
[365893851,1749976263428,-1366.96,0.00021917,4]
[365893855,1749976267608,-300.0,0.00020508,2]
[365893856,1749976271225,-500.0,0.00020509,2]
[365893857,1749976271250,-500.0,0.00020509,2]
[365893858,1749976271277,-500.0,0.00020509,2]
[365893859,1749976271301,-500.0,0.00020509,2]
[365893860,1749976271330,-418.89515392,0.00020509,2]
[365893862,1749976274378,-81.10484608,0.00020509,2]
[365893863,1749976274404,-500.0,0.00020509,2]
[365893864,1749976274428,-500.0,0.00020509,2]
[365893865,1749976274451,-500.0,0.00020509,2]
[365893866,1749976274475,-500.0,0.00020509,2]
[365893867,1749976274499,-258.57985183,0.00020509,2]
[365893868,1749976274525,-79.21045601,0.00020509,2]
[365893869,1749976275997,-2339.68469791,0.00020509,2]
[365893870,1749976276021,-79.21045601,0.00020509,2]
[365893871,1749976276490,-2339.68469791,0.00020509,2]
[365893872,1749976279752,-2339.68469791,0.00020509,2]
[365893873,1749976283840,-79.21045601,0.00020509,2]
[365893874,1749976283864,-2339.68469791,0.00020509,2]
[365893875,1749976286309,-79.21045601,0.00020509,2]
[365893876,1749976286340,-2339.68469791,0.00020509,2]
[365893878,1749976322984,-300.0,0.00020508,2]
[365893879,1749976324229,-79.21045601,0.00020509,2]
[365893880,1749976324255,-647.32169053,0.00020509,2]
[365893882,1749976326402,170.0,0.00016493,3]
[365893884,1749976433738,3055.5355133,0.0002,2]
[365893885,1749976433763,1944.4644867,0.0002,2]
[365893886,1749976449214,5000.0,0.0002,2]
[365894237,1749976495083,5000.0,0.0002,2]
[365894591,1749976511134,5000.0,0.0002,2]
[365894592,1749976513776,152.94457096,6.9e-07,2]
[365894593,1749976514074,152.94457096,6.9e-07,2]
[365894595,1749976529559,839.65399638,0.0002,2]
[365894596,1749976529585,960.26491164,0.0002,2]
[365894599,1749976592452,164.00770769,0.00019891,2]
[365894603,1749976656571,2652.255437,0.0001966,2]
[365894605,1749976693684,170.0,0.0002,2]
[365894607,1749976723142,170.0,0.0002,2]
[365894609,1749976757612,2279.2064084,0.0002,2]
[365894610,1749976814499,152.94457096,6.9e-07,2]
[365894611,1749976831713,2400.9920473,0.0002,2]
[365894612,1749976839687,543.5370762,0.0001944,2]
[365894616,1749976957126,351.920443,0.00013699,2]
[365894618,1749976980373,8244.87902281,0.0002,3]
[365894619,1749976980397,18090.007625,0.0002,3]
[365894620,1749976980421,18090.007625,0.0002,3]
[365894621,1749976980443,18090.007625,0.0002,3]
[365894622,1749976980466,18090.007625,0.0002,3]
[365894623,1749976980489,18090.007625,0.0002,3]
[365894624,1749976980512,18090.007625,0.0002,3]
[365894625,1749976980535,18090.007625,0.0002,3]
[365894626,1749976980557,18090.007625,0.0002,3]
[365894627,1749976980579,6504.39302451,0.0002,3]
[365894629,1749977070285,567.7119902,0.00019402,2]
[365894632,1749977114879,5000.0,0.0002,2]
[365894634,1749977130727,396.06570225,0.0002,2]
[365894635,1749977175806,4816.93061628,0.0002,2]
[365894637,1749977199045,182.0,0.00025042,60]
[365894638,1749977209863,181.55451,0.00019341,2]
[365894639,1749977228143,-251.43088971,0.00020065,2]
[365894640,1749977228167,-251.43088967,0.00020147,2]
[365894641,1749977228189,-2784.27534579,0.00020164,2]
[365894642,1749977228213,-351.920443,0.00020187,2]
[365894643,1749977228237,-251.43088967,0.00020229,2]
[365894644,1749977228260,-166.0,0.00020274,2]
[365894645,1749977228282,-251.43088967,0.0002031,2]
[365894646,1749977228305,-160.0,0.00020469,2]
[365894647,1749977228328,-300.0,0.00020491,2]
[365894648,1749977228351,-500.0,0.00020492,2]
[365894649,1749977228376,-500.0,0.00020492,2]
[365894650,1749977228398,-500.0,0.00020492,2]
[365894651,1749977228422,-437.95976623,0.00020492,2]
[365894652,1749977228444,-582.48609805,0.00020492,2]
[365894653,1749977228468,-500.0,0.00020492,2]
[365894654,1749977228492,-850.96699326,0.00020492,2]
[365894655,1749977229112,-320.16898819,0.00020492,2]
[365894656,1749977240175,-500.0,0.00020164,2]
[365894657,1749977240201,-63.83150108,0.00020287,2]
[365894658,1749977240233,-1881.38008677,0.00020287,2]
[365894683,1749977377498,623.35178176,0.00019493,2]
[365894684,1749977377526,18090.007625,0.00019493,2]
[365894685,1749977377554,6186.64059324,0.00019493,2]
[365894697,1749977414298,830.64874706,0.000189,2]
[365894698,1749977424491,169.785493,0.00019491,2]
[365894699,1749977426373,3054.78841215,0.0002,2]
[365894739,1749977431974,-160.0,0.00020285,2]
[365894741,1749977431984,-1200.0,0.00020489,2]
[365894743,1749977431994,-300.0,0.0002049,2]
[365894745,1749977432003,-300.0,0.0002049,2]
[365894747,1749977432012,-300.0,0.0002049,2]
[365894749,1749977432022,-300.0,0.0002049,2]
[365894751,1749977432031,-500.0,0.00020491,2]
[365894753,1749977432041,-500.0,0.00020491,2]
[365894755,1749977432050,-500.0,0.00020491,2]
[365894758,1749977432060,-176.17502909,0.00020491,2]
[365894760,1749977432070,-601.21107149,0.00020491,2]
[365894762,1749977432082,-638.7063482,0.00020491,2]
[365894764,1749977432091,-500.0,0.00020491,2]
[365894766,1749977432101,-500.0,0.00020491,2]
[365894768,1749977432109,-483.68119407,0.00020491,2]
[365894770,1749977432119,-1239.91741969,0.00020491,2]
[365894772,1749977432128,-308.15563264,0.00020491,2]
[365894774,1749977432138,-1198.73023462,0.00020491,2]
[365894777,1749977432158,-41.18718507,0.00020491,2]
[365894779,1749977432168,-440.65850516,0.00020491,2]
[365894782,1749977432183,-67.96983508,0.00020491,2]
[365894784,1749977432193,-537.48016492,0.00020491,2]
[365894786,1749977432204,-702.43725477,0.00020491,2]
[365894788,1749977432213,-500.0,0.00020491,2]
[365894790,1749977432223,-1239.91741969,0.00020491,2]
[365894792,1749977432232,-1239.91741969,0.00020491,2]
[365894794,1749977432241,-383.71874717,0.00020491,2]
[365894797,1749977432250,-1216.63333096,0.00020491,2]
[365894802,1749977432269,-23.28408873,0.00020491,2]
[365894805,1749977432279,-1239.91741969,0.00020491,2]
[365894808,1749977432288,-1239.91741969,0.00020491,2]
[365894810,1749977432299,-1239.91741969,0.00020491,2]
[365894812,1749977432308,-1239.91741969,0.00020491,2]
[365894814,1749977432319,-1239.91741969,0.00020491,2]
[365894817,1749977432329,-545.57665115,0.00020491,2]
[365894819,1749977432342,-694.34076854,0.00020491,2]
[365894821,1749977432352,-1239.91741969,0.00020491,2]
[365894822,1749977432362,-665.74181177,0.00020491,2]
[365894825,1749977432374,-574.17560792,0.00020491,2]
[365894827,1749977432384,-1239.91741969,0.00020491,2]
[365894828,1749977432393,-785.76567602,0.00020491,2]
[365894829,1749977432405,-454.15174367,0.00020491,2]
[365894830,1749977432415,-683.34825633,0.00020491,2]
[365894930,1749977437974,-251.43088967,0.00020391,2]
[365894931,1749977437983,-6413.38059778,0.00020489,2]
[365894932,1749977437993,-284.20067578,0.0002049,2]
[365894933,1749977438002,-9128.96402093,0.00020491,2]
[365894934,1749977438012,-1740.6,0.00020492,2]
[365894935,1749977438021,-1911.62,0.00020492,2]
[365894936,1749977438031,-2214.56,0.00020492,2]
[365894937,1749977438041,-467.65,0.00020492,2]
[365894938,1749977438050,-460.0,0.00020492,2]
[365894939,1749977438060,-300.0,0.00020493,2]
[365894940,1749977438070,-460.0,0.00020502,2]
[365894941,1749977438080,-460.0,0.00020503,2]
[365894942,1749977438090,-460.0,0.00020503,2]
[365894943,1749977438099,-500.0,0.00020505,2]
[365894944,1749977438109,-3173.07,0.00020505,2]
[365894945,1749977438119,-612.02,0.00020505,2]
[365894946,1749977438128,-818.93,0.00020505,2]
[365894947,1749977438137,-462.76,0.00020505,2]
[365894948,1749977438146,-1396.73,0.00020507,2]
[365894949,1749977438156,-460.0,0.00020518,2]
[365894950,1749977438165,-432.403,0.00020534,2]
[365894951,1749977438175,-178.21731209,0.00020534,2]
[365894952,1749977438185,-500.0,0.00020573,2]
[365894953,1749977438194,-500.0,0.00020573,2]
[365894954,1749977438203,-500.0,0.00020573,2]
[365894955,1749977438212,-780.79,0.000206,2]
[365894956,1749977438222,-254.68170511,0.00020635,2]
[365894957,1749977438231,-1740.6,0.00020766,2]
[365894958,1749977438240,-1911.62,0.00020766,2]
[365894959,1749977438250,-2214.56,0.00020766,2]
[365894960,1749977438259,-467.65,0.00020766,2]
[365894961,1749977438268,-460.0,0.00020766,2]
[365894962,1749977438277,-460.0,0.00020777,2]
[365894963,1749977438287,-460.0,0.00020777,2]
[365894964,1749977438295,-177.79823368,0.00020779,2]
[365894965,1749977438305,-3173.07,0.00020779,2]
[365894966,1749977438314,-612.02,0.00020779,2]
[365894967,1749977438323,-818.93,0.00020779,2]
[365894968,1749977438332,-462.76,0.00020779,2]
[365894969,1749977438342,-1396.73,0.00020781,2]
[365894970,1749977438351,-460.0,0.00020792,2]
[365894971,1749977438361,-1407.43120716,0.00020832,2]
[365894972,1749977438370,-500.0,0.0002098,2]
[365894973,1749977438379,-170.0,0.00021,2]
[365894974,1749977438388,-1740.6,0.0002104,2]
[365894975,1749977438398,-1911.62,0.0002104,2]
[365894976,1749977438407,-2214.56,0.0002104,2]
[365894977,1749977438416,-467.65,0.0002104,2]
[365894978,1749977438426,-460.0,0.0002104,2]
[365894979,1749977438435,-460.0,0.00021051,2]
[365894980,1749977438445,-460.0,0.00021051,2]
[365894981,1749977438454,-3173.07,0.00021053,2]
[365894982,1749977438464,-612.02,0.00021053,2]
[365894983,1749977438475,-818.93,0.00021053,2]
[365894984,1749977438484,-462.76,0.00021053,2]
[365894985,1749977438495,-1396.73,0.00021055,2]
[365894986,1749977438505,-711.06366694,0.00021121,2]
[365894987,1749977438515,-651.20526447,0.00021121,2]
[365894988,1749977438524,-2360.07,0.00021134,2]
[365894989,1749977438533,-1740.6,0.00021314,2]
[365894990,1749977438543,-1911.62,0.00021314,2]
[365894991,1749977438552,-2214.56,0.00021314,2]
[365894992,1749977438562,-467.65,0.00021314,2]
[365894993,1749977438571,-460.0,0.00021314,2]
[365894994,1749977438581,-460.0,0.00021325,2]
[365894995,1749977438591,-460.0,0.00021325,2]
[365894996,1749977438600,-3173.07,0.00021327,2]
[365894997,1749977438609,-612.02,0.00021327,2]
[365894998,1749977438619,-818.93,0.00021327,2]
[365894999,1749977438630,-462.76,0.00021327,2]
[365895000,1749977438639,-1396.73,0.00021329,2]
[365895001,1749977438650,-464.10445723,0.00021533,2]
[365895002,1749977438659,-345.57046667,0.0002154,2]
[365895003,1749977438669,-500.0,0.0002154,2]
[365895004,1749977438678,-504.0200472,0.0002154,2]
[365895005,1749977438688,-500.0,0.0002154,2]
[365895006,1749977438697,-1740.6,0.00021588,2]
[365895007,1749977438707,-1911.62,0.00021588,2]
[365895008,1749977438716,-2214.56,0.00021588,2]
[365895009,1749977438726,-467.65,0.00021588,2]
[365895010,1749977438735,-460.0,0.00021588,2]
[365895011,1749977438745,-460.0,0.00021599,2]
[365895012,1749977438754,-460.0,0.00021599,2]
[365895013,1749977438763,-3173.07,0.00021601,2]
[365895014,1749977438779,-612.02,0.00021601,2]
[365895015,1749977438788,-818.93,0.00021601,2]
[365895016,1749977438798,-462.76,0.00021601,2]
[365895017,1749977438807,-1396.73,0.00021603,2]
[365895018,1749977438819,-500.0,0.00021653,2]
[365895019,1749977438828,-500.0,0.00021653,2]
[365895020,1749977438837,-500.0,0.00021725,2]
[365895021,1749977438847,-500.0,0.0002178,2]
[365895022,1749977438856,-696.12827031,0.00021817,2]
[365895023,1749977438866,-1850.58275902,0.00021817,2]
[365895024,1749977438875,-160.0,0.00021856,2]
[365895025,1749977438884,-1740.6,0.00021862,2]
[365895026,1749977438893,-1911.62,0.00021862,2]
[365895027,1749977438903,-2214.56,0.00021862,2]
[365895028,1749977438912,-467.65,0.00021862,2]
[365895029,1749977438921,-460.0,0.00021873,2]
[365895030,1749977438931,-229.86375354,0.00021874,2]
[365895031,1749977438940,-160.0,0.00021874,2]
[365895032,1749977438948,-835.55256958,0.00021874,2]
[365895033,1749977438958,-424.47602138,0.00021874,2]
[365895034,1749977438967,-213.32089821,0.00021874,2]
[365895035,1749977438976,-160.0,0.00021874,2]
[365895036,1749977438986,-3173.07,0.00021875,2]
[365895037,1749977438995,-612.02,0.00021875,2]
[365895038,1749977439004,-818.93,0.00021875,2]
[365895039,1749977439013,-462.76,0.00021875,2]
[365895040,1749977439023,-1396.73,0.00021877,2]
[365895041,1749977439033,-476.26532313,0.00021881,2]
[365895042,1749977439042,-2096.58664553,0.000219,6]
[365895043,1749977439052,-845.25843836,0.00021912,2]
[365895044,1749977439061,-12535.62630729,0.00021912,2]
[365895045,1749977439070,-481.1101109,0.00021917,4]
[365895046,1749977439079,-420.0,0.00021917,4]
[365895047,1749977439090,-460.0,0.00021917,4]
[365895048,1749977439100,-460.0,0.00021917,4]
[365895049,1749977439109,-309.62,0.00021917,2]
[365895050,1749977439119,-460.0,0.00021917,4]
[365895051,1749977439128,-460.0,0.00021917,4]
[365895052,1749977439137,-460.0,0.00021917,4]
[365895053,1749977439146,-500.0,0.00021917,4]
[365895054,1749977439156,-507.81,0.00021917,4]
[365895055,1749977439165,-460.0,0.00021917,4]
[365895056,1749977439174,-460.0,0.00021917,4]
[365895057,1749977439183,-460.0,0.00021917,4]
[365895058,1749977439192,-380.0,0.00021917,4]
[365895059,1749977439202,-460.0,0.00021917,4]
[365895060,1749977439211,-586.09,0.00021917,4]
[365895061,1749977439220,-560.17483654,0.00021917,4]
[365895062,1749977439229,-365.03691886,0.00021917,4]
[365895063,1749977439239,-460.0,0.00021917,4]
[365895064,1749977439247,-440.0,0.00021917,4]
[365895065,1749977439257,-460.0,0.00021917,4]
[365895066,1749977439266,-460.0,0.00021917,4]
[365895067,1749977439275,-294.05629022,0.00021917,4]
[365895068,1749977439284,-322.68253243,0.00021917,4]
[365895069,1749977439294,-460.0,0.00021917,4]
[365895070,1749977439303,-460.0,0.00021917,4]
[365895071,1749977439313,-460.0,0.00021917,4]
[365895072,1749977439322,-500.0,0.00021917,4]
[365895073,1749977439331,-500.0,0.00021917,4]
[365895074,1749977439342,-470.00019909,0.00021917,4]
[365895075,1749977439351,-460.0,0.00021917,4]
[365895076,1749977439361,-430.0,0.00021917,4]
[365895077,1749977439370,-460.0,0.00021917,4]
[365895078,1749977439379,-580.98281249,0.00021917,4]
[365895079,1749977439388,-499.21,0.00021917,4]
[365895080,1749977439398,-312.48567619,0.00021917,4]
[365895081,1749977439407,-460.0,0.00021917,4]
[365895082,1749977439416,-214.73489041,0.00021917,4]
[365895083,1749977439426,-460.0,0.00021917,4]
[365895084,1749977439435,-440.0,0.00021917,4]
[365895086,1749977439443,-460.0,0.00021917,4]
[365895087,1749977439453,-440.0,0.00021917,4]
[365895089,1749977439462,-460.0,0.00021917,4]
[365895090,1749977439472,-405.1604439,0.00021917,4]
[365895091,1749977439481,-440.0,0.00021917,4]
[365895092,1749977439490,-441.05521309,0.00021917,4]
[365895094,1749977439499,-380.0,0.00021917,4]
[365895095,1749977439509,-254.07258353,0.00021917,4]
[365895096,1749977439518,-440.0,0.00021917,4]
[365895097,1749977439527,-440.0,0.00021917,4]
[365895098,1749977439536,-460.0,0.00021917,4]
[365895099,1749977439545,-430.0,0.00021917,4]
[365895100,1749977439554,-430.0,0.00021917,4]
[365895101,1749977439564,-401.10544024,0.00021917,4]
[365895102,1749977439573,-541.69,0.00021917,2]
[365895103,1749977439582,-430.0,0.00021917,4]
[365895104,1749977439592,-430.0,0.00021917,4]
[365895105,1749977439601,-460.0,0.00021917,4]
[365895106,1749977439610,-530.02470924,0.00021917,4]
[365895107,1749977439619,-430.0,0.00021917,4]
[365895108,1749977439629,-421.33517862,0.00021917,4]
[365895109,1749977439638,-460.0,0.00021917,4]
[365895110,1749977439649,-460.0,0.00021917,4]
[365895111,1749977439658,-460.0,0.00021917,4]
[365895112,1749977439667,-460.0,0.00021917,4]
[365895113,1749977439676,-500.0,0.00021917,4]
[365895114,1749977439685,-216.44996262,0.00021917,4]
[365895115,1749977439695,-430.0,0.00021917,4]
[365895116,1749977439705,-460.0,0.00021917,4]
[365895117,1749977439714,-460.0,0.00021917,4]
[365895118,1749977439724,-340.03043852,0.00021917,4]
[365895119,1749977439732,-442.40259793,0.00021917,4]
[365895120,1749977439742,-460.0,0.00021917,4]
[365895121,1749977439751,-430.0,0.00021917,4]
[365895122,1749977439760,-460.0,0.00021917,4]
[365895123,1749977439773,-460.0,0.00021917,4]
[365895124,1749977439783,-441.60381365,0.00021917,4]
[365895125,1749977439792,-381.92977104,0.00021917,4]
[365895126,1749977439801,-460.0,0.00021917,4]
[365895127,1749977439811,-440.0,0.00021917,4]
[365895128,1749977439820,-356.20223324,0.00021917,4]
[365895129,1749977439829,-460.0,0.00021917,4]
[365895130,1749977439839,-430.0,0.00021917,4]
[365895131,1749977439848,-460.0,0.00021917,4]
[365895132,1749977439857,-460.0,0.00021917,4]
[365895133,1749977439866,-430.0,0.00021917,4]
[365895134,1749977439875,-328.30114213,0.00021917,4]
[365895135,1749977439885,-460.0,0.00021917,4]
[365895136,1749977439894,-460.0,0.00021917,4]
[365895137,1749977439902,-440.74307886,0.00021917,4]
[365895138,1749977439912,-500.0,0.00021917,4]
[365895139,1749977439922,-440.0,0.00021917,4]
[365895140,1749977439931,-430.0,0.00021917,4]
[365895141,1749977439941,-440.0,0.00021917,4]
[365895142,1749977439950,-460.0,0.00021917,4]
[365895143,1749977439959,-2631.92,0.00021917,4]
[365895144,1749977439969,-522.23186647,0.00021917,4]
[365895145,1749977439979,-173.65366645,0.00021917,4]
[365895146,1749977439988,-332.95941968,0.00021917,4]
[365895147,1749977439997,-533.9,0.00021917,4]
[365895148,1749977440012,-2890.02,0.00021917,4]
[365895149,1749977440022,-440.0,0.00021917,4]
[365895150,1749977440031,-460.0,0.00021917,4]
[365895151,1749977440040,-460.0,0.00021917,4]
[365895152,1749977440049,-463.20479035,0.00021917,4]
[365895153,1749977440058,-1296.25,0.00021917,4]
[365895154,1749977440068,-337.24598555,0.00021917,4]
[365895155,1749977440077,-276.39247356,0.00021917,4]
[365895156,1749977440086,-2773.88,0.00021917,4]
[365895157,1749977440095,-778.42,0.00021917,4]
[365895158,1749977440105,-1106.45,0.00021917,4]
[365895159,1749977440114,-460.0,0.00021917,4]
[365895160,1749977440124,-460.0,0.00021917,4]
[365895161,1749977440134,-1294.58,0.00021917,4]
[365895162,1749977440143,-460.0,0.00021917,4]
[365895163,1749977440152,-460.0,0.00021917,4]
[365895164,1749977440161,-430.0,0.00021917,4]
[365895165,1749977440170,-440.0,0.00021917,4]
[365895166,1749977440179,-460.0,0.00021917,4]
[365895167,1749977440188,-440.0,0.00021917,4]
[365895168,1749977440198,-460.0,0.00021917,4]
[365895169,1749977440208,-460.0,0.00021917,4]
[365895170,1749977440217,-440.0,0.00021917,4]
[365895171,1749977440226,-430.0,0.00021917,4]
[365895172,1749977440235,-270.0,0.00021917,4]
[365895173,1749977440244,-460.0,0.00021917,4]
[365895174,1749977440253,-460.0,0.00021917,4]
[365895175,1749977440262,-440.0,0.00021917,4]
[365895176,1749977440272,-1673.42,0.00021917,4]
[365895177,1749977440281,-460.0,0.00021917,4]
[365895178,1749977440291,-460.0,0.00021917,4]
[365895179,1749977440299,-460.0,0.00021917,4]
[365895180,1749977440309,-460.0,0.00021917,4]
[365895181,1749977440318,-719.49,0.00021917,4]
[365895182,1749977440327,-460.0,0.00021917,4]
[365895183,1749977440337,-1935.94,0.00021917,4]
[365895184,1749977440346,-434.74176524,0.00021917,4]
[365895185,1749977440355,-410.0,0.00021917,4]
[365895186,1749977440365,-460.0,0.00021917,4]
[365895187,1749977440375,-460.0,0.00021917,4]
[365895188,1749977440384,-430.0,0.00021917,4]
[365895189,1749977440394,-500.34656641,0.00021917,4]
[365895190,1749977440403,-460.0,0.00021917,4]
[365895191,1749977440412,-440.0,0.00021917,4]
[365895192,1749977440421,-1444.68,0.00021917,4]
[365895193,1749977440430,-460.0,0.00021917,4]
[365895194,1749977440440,-533.29082594,0.00021917,4]
[365895195,1749977440449,-460.0,0.00021917,4]
[365895196,1749977440458,-1575.75,0.00021917,4]
[365895197,1749977440468,-460.0,0.00021917,4]
[365895198,1749977440477,-574.43913248,0.00021917,4]
[365895199,1749977440486,-528.25,0.00021917,4]
[365895200,1749977440496,-437.80626799,0.00021917,4]
[365895201,1749977440506,-460.0,0.00021917,4]
[365895202,1749977440515,-460.0,0.00021917,4]
[365895203,1749977440524,-838.38,0.00021917,4]
[365895204,1749977440534,-420.0,0.00021917,4]
[365895205,1749977440543,-460.0,0.00021917,4]
[365895206,1749977440553,-460.0,0.00021917,4]
[365895207,1749977440562,-440.0,0.00021917,4]
[365895208,1749977440571,-460.0,0.00021917,4]
[365895209,1749977440581,-643.67,0.00021917,4]
[365895210,1749977440592,-460.0,0.00021917,4]
[365895211,1749977440601,-460.0,0.00021917,4]
[365895212,1749977440611,-3620.04,0.00021917,4]
[365895213,1749977440620,-465.41,0.00021917,4]
[365895214,1749977440629,-207.4,0.00021921,2]
[365895215,1749977440639,-170.0,0.00022,3]
[365895216,1749977440648,-1317.57,0.00022,7]
[365895217,1749977440658,-2096.58664535,0.00022038,6]
[365895218,1749977440667,-1740.6,0.00022136,2]
[365895219,1749977440676,-1911.62,0.00022136,2]
[365895220,1749977440686,-2214.56,0.00022136,2]
[365895221,1749977440696,-467.65,0.00022136,2]
[365895222,1749977440705,-387.72750865,0.00022146,2]
[365895223,1749977440714,-460.0,0.00022147,2]
[365895224,1749977440723,-3173.07,0.00022149,2]
[365895225,1749977440733,-612.02,0.00022149,2]
[365895226,1749977440742,-818.93,0.00022149,2]
[365895227,1749977440752,-462.76,0.00022149,2]
[365895228,1749977440761,-1396.73,0.00022151,2]
[365895229,1749977440774,-2096.58664535,0.00022176,6]
[365895230,1749977440783,-507.81,0.00022191,4]
[365895231,1749977440792,-370.0,0.00022191,4]
[365895232,1749977440802,-460.0,0.00022191,4]
[365895233,1749977440812,-460.0,0.00022191,4]
[365895234,1749977440821,-586.09,0.00022191,4]
[365895235,1749977440830,-460.0,0.00022191,4]
[365895236,1749977440840,-499.21,0.00022191,4]
[365895237,1749977440852,-380.48085952,0.00022191,4]
[365895238,1749977440862,-541.69,0.00022191,2]
[365895239,1749977440871,-460.0,0.00022191,4]
[365895240,1749977440880,-460.0,0.00022191,4]
[365895241,1749977440890,-460.0,0.00022191,4]
[365895242,1749977440900,-2631.92,0.00022191,4]
[365895243,1749977440909,-533.9,0.00022191,4]
[365895244,1749977440918,-2890.02,0.00022191,4]
[365895245,1749977440927,-460.0,0.00022191,4]
[365895247,1749977440937,-1296.25,0.00022191,4]
[365895249,1749977440946,-2773.88,0.00022191,4]
[365895251,1749977440955,-778.42,0.00022191,4]
[365895253,1749977440965,-1106.45,0.00022191,4]
[365895255,1749977440974,-460.0,0.00022191,4]
[365895269,1749977441106,-1294.58,0.00022191,4]
[365895272,1749977441116,-460.0,0.00022191,4]
[365895274,1749977441125,-460.0,0.00022191,4]
[365895275,1749977441134,-460.0,0.00022191,4]
[365895277,1749977441144,-460.0,0.00022191,4]
[365895279,1749977441153,-460.0,0.00022191,4]
[365895281,1749977441162,-460.0,0.00022191,4]
[365895283,1749977441171,-1673.42,0.00022191,4]
[365895284,1749977441180,-460.0,0.00022191,4]
[365895286,1749977441190,-460.0,0.00022191,4]
[365895288,1749977441199,-460.0,0.00022191,4]
[365895291,1749977441208,-460.0,0.00022191,4]
[365895293,1749977441217,-719.49,0.00022191,4]
[365895295,1749977441226,-460.0,0.00022191,4]
[365895297,1749977441235,-1935.94,0.00022191,4]
[365895298,1749977441244,-460.0,0.00022191,4]
[365895300,1749977441253,-460.0,0.00022191,4]
[365895302,1749977441263,-460.0,0.00022191,4]
[365895304,1749977441272,-1444.68,0.00022191,4]
[365895306,1749977441282,-460.0,0.00022191,4]
[365895308,1749977441291,-460.0,0.00022191,4]
[365895310,1749977441300,-1575.75,0.00022191,4]
[365895312,1749977441309,-528.25,0.00022191,4]
[365895314,1749977441318,-460.0,0.00022191,4]
[365895316,1749977441327,-460.0,0.00022191,4]
[365895318,1749977441336,-838.38,0.00022191,4]
[365895320,1749977441346,-460.0,0.00022191,4]
[365895322,1749977441355,-460.0,0.00022191,4]
[365895324,1749977441365,-643.67,0.00022191,4]
[365895326,1749977441375,-460.0,0.00022191,4]
[365895328,1749977441383,-460.0,0.00022191,4]
[365895330,1749977441392,-3620.04,0.00022191,4]
[365895332,1749977441401,-465.41,0.00022191,4]
[365895334,1749977441410,-780.79,0.000222,7]
[365895336,1749977441419,-1000.0,0.00022273,2]
[365895338,1749977441428,-696.1282703,0.00022297,2]
[365895340,1749977441437,-420.0,0.000223,2]
[365895342,1749977441447,-420.0,0.000223,2]
[365895344,1749977441456,-420.0,0.000223,2]
[365895346,1749977441465,-311.0,0.000223,2]
[365895348,1749977441475,-420.0,0.00022303,2]
[365895350,1749977441485,-2096.58664535,0.00022314,7]
[365895352,1749977441494,-500.0,0.00022356,2]
[365895353,1749977441503,-1220.0,0.00022406,2]
[365895355,1749977441512,-1740.6,0.0002241,2]
[365895357,1749977441522,-1911.62,0.0002241,2]
[365895359,1749977441531,-2214.56,0.0002241,2]
[365895361,1749977441540,-467.65,0.0002241,2]
[365895362,1749977441550,-168.0,0.00022418,2]
[365895363,1749977441561,-281.51930721,0.00022421,2]
[365895364,1749977441571,-3173.07,0.00022423,2]